[Event "Titled Tuesday Blitz November 01 Early 2022"]
[White "Malyi, Viacheslav"]
[Black "Bortnyk, Olexandr"]
[WhiteFideId "14123983"]
[BlackFideId "14120828"]
[WhiteElo "2291"]
[BlackElo "2723"]
[Result "0-1"]
[Round "01"]
[TimeControl "180+1"]
[Date "2022.11.01"]
[WhiteClock "0:00:03"]
[BlackClock "0:00:15"]

1. e4 {[%clk 0:02:58]}  Nf6 {[%clk 0:02:56]} 2. e5 {[%clk 0:02:56]}  Nd5 {[%clk 0:02:56]} 3. d4 {[%clk 0:02:57]}  d6 {[%clk 0:02:56]} 4. Nf3 {[%clk 0:02:57]}  dxe5 {[%clk 0:02:56]} 5. Nxe5 {[%clk 0:02:57]}  c6 {[%clk 0:02:56]} 6. Be2 {[%clk 0:02:57]}  Bf5 {[%clk 0:02:57]} 7. O-O {[%clk 0:02:55]}  Nd7 {[%clk 0:02:57]} 8. Nf3 {[%clk 0:02:55]}  e6 {[%clk 0:02:57]} 9. c4 {[%clk 0:02:53]}  N5f6 {[%clk 0:02:57]} 10. Nh4 {[%clk 0:02:47]}  Bg6 {[%clk 0:02:54]} 11. Nc3 {[%clk 0:02:47]}  Bd6 {[%clk 0:02:54]} 12. Re1 {[%clk 0:02:43]}  Ne4 {[%clk 0:02:50]} 13. g3 {[%clk 0:02:33]}  Nxc3 {[%clk 0:02:47]} 14. bxc3 {[%clk 0:02:33]}  O-O {[%clk 0:02:46]} 15. Nxg6 {[%clk 0:02:33]}  hxg6 {[%clk 0:02:47]} 16. Bf3 {[%clk 0:02:30]}  Qa5 {[%clk 0:02:41]} 17. Qb3 {[%clk 0:02:29]}  Rab8 {[%clk 0:02:34]} 18. Be3 {[%clk 0:02:18]}  Rfd8 {[%clk 0:02:15]} 19. Bg2 {[%clk 0:02:16]}  c5 {[%clk 0:02:13]} 20. Rac1 {[%clk 0:02:11]}  b5 {[%clk 0:01:45]} 21. cxb5 {[%clk 0:01:51]}  Rxb5 {[%clk 0:01:46]} 22. Qc2 {[%clk 0:01:48]}  cxd4 {[%clk 0:01:43]} 23. cxd4 {[%clk 0:01:28]}  Nf6 {[%clk 0:01:38]} 24. Rb1 {[%clk 0:01:25]}  Rdb8 {[%clk 0:01:36]} 25. h3 {[%clk 0:01:21]}  a6 {[%clk 0:01:23]} 26. Red1 {[%clk 0:01:21]}  Rxb1 {[%clk 0:01:19]} 27. Rxb1 {[%clk 0:01:19]}  Rxb1+ {[%clk 0:01:20]} 28. Qxb1 {[%clk 0:01:20]}  Nd5 {[%clk 0:01:21]} 29. Bxd5 {[%clk 0:01:09]}  Qxd5 {[%clk 0:01:22]} 30. Qb3 {[%clk 0:01:08]}  Qc6 {[%clk 0:00:41]} 31. Qd3 {[%clk 0:00:57]}  Kf8 {[%clk 0:00:40]} 32. Qd2 {[%clk 0:00:54]}  Ke8 {[%clk 0:00:38]} 33. Bf4 {[%clk 0:00:53]}  Be7 {[%clk 0:00:37]} 34. Qa5 {[%clk 0:00:43]}  f6 {[%clk 0:00:35]} 35. h4 {[%clk 0:00:39]}  Kd7 {[%clk 0:00:31]} 36. Qd2 {[%clk 0:00:33]}  Qb7 {[%clk 0:00:22]} 37. Qd3 {[%clk 0:00:32]}  Qb5 {[%clk 0:00:21]} 38. Qxg6 {[%clk 0:00:29]}  Qe2 {[%clk 0:00:19]} 39. Qb1 {[%clk 0:00:22]}  Ke8 {[%clk 0:00:17]} 40. Qg6+ {[%clk 0:00:17]}  Kf8 {[%clk 0:00:17]} 41. Qb1 {[%clk 0:00:17]}  Kf7 {[%clk 0:00:17]} 42. Qb3 {[%clk 0:00:16]}  Qe1+ {[%clk 0:00:15]} 43. Kg2 {[%clk 0:00:14]}  Qe4+ {[%clk 0:00:16]} 44. Qf3 {[%clk 0:00:12]}  Qxd4 {[%clk 0:00:17]} 45. Qb3 {[%clk 0:00:12]}  g6 {[%clk 0:00:12]} 46. Be3 {[%clk 0:00:11]}  Qe4+ {[%clk 0:00:12]} 47. Kg1 {[%clk 0:00:11]}  Qc6 {[%clk 0:00:12]} 48. Qb1 {[%clk 0:00:08]}  f5 {[%clk 0:00:12]} 49. Qb3 {[%clk 0:00:08]}  Bf6 {[%clk 0:00:12]} 50. Qb1 {[%clk 0:00:08]}  Qb5 {[%clk 0:00:09]} 51. Qxb5 {[%clk 0:00:07]}  axb5 {[%clk 0:00:10]} 52. Kf1 {[%clk 0:00:07]}  e5 {[%clk 0:00:10]} 53. Ke2 {[%clk 0:00:07]}  Ke6 {[%clk 0:00:11]} 54. Kd3 {[%clk 0:00:07]}  e4+ {[%clk 0:00:11]} 55. Kc2 {[%clk 0:00:06]}  Kd5 {[%clk 0:00:12]} 56. Bd2 {[%clk 0:00:04]}  Kc4 {[%clk 0:00:11]} 57. Be3 {[%clk 0:00:04]}  Be5 {[%clk 0:00:08]} 58. Bd2 {[%clk 0:00:04]}  Bd4 {[%clk 0:00:09]} 59. Be3 {[%clk 0:00:04]}  Bxe3 {[%clk 0:00:09]} 60. fxe3 {[%clk 0:00:05]}  b4 {[%clk 0:00:10]} 61. Kd2 {[%clk 0:00:04]}  b3 {[%clk 0:00:10]} 62. axb3+ {[%clk 0:00:04]}  Kxb3 {[%clk 0:00:11]} 63. Ke2 {[%clk 0:00:05]}  Kc3 {[%clk 0:00:12]} 64. g4 {[%clk 0:00:04]}  fxg4 {[%clk 0:00:12]} 65. Kf2 {[%clk 0:00:04]}  Kd2 {[%clk 0:00:12]} 66. Kg3 {[%clk 0:00:03]}  Kxe3 {[%clk 0:00:13]} 67. Kxg4 {[%clk 0:00:04]}  Kd4 {[%clk 0:00:10]} 68. Kg5 {[%clk 0:00:05]}  e3 {[%clk 0:00:11]} 69. Kxg6 {[%clk 0:00:06]}  e2 {[%clk 0:00:12]} 70. h5 {[%clk 0:00:07]}  e1=Q {[%clk 0:00:13]} 71. h6 {[%clk 0:00:08]}  Qg3+ {[%clk 0:00:13]} 72. Kh7 {[%clk 0:00:08]}  Ke5 {[%clk 0:00:12]} 73. Kh8 {[%clk 0:00:07]}  Kf6 {[%clk 0:00:13]} 74. Kh7 {[%clk 0:00:03]}  Qg6+ {[%clk 0:00:13]} 75. Kh8 {[%clk 0:00:03]}  Qxh6+ {[%clk 0:00:14]} 76. Kg8 {[%clk 0:00:03]}  Qg7# {[%clk 0:00:15]} 0-1


[Site "https://www.chess.com"]

[Event "Titled Tuesday Blitz November 01 Early 2022"]
[White "Manon-og, Ramon Jr."]
[Black "Vrbljanac, Aleksandar"]
[WhiteFideId "5200776"]
[BlackFideId "932817"]
[WhiteElo "2274"]
[BlackElo "2309"]
[Result "0-1"]
[Round "01"]
[TimeControl "180+1"]
[Date "2022.11.02"]
[WhiteClock "0:00:09"]
[BlackClock "0:00:25"]

1. e4 {[%clk 0:03:00]}  e5 {[%clk 0:02:57]} 2. Nf3 {[%clk 0:03:00]}  Nc6 {[%clk 0:02:57]} 3. Bc4 {[%clk 0:03:00]}  Nf6 {[%clk 0:02:54]} 4. Ng5 {[%clk 0:03:00]}  d5 {[%clk 0:02:54]} 5. exd5 {[%clk 0:03:01]}  Na5 {[%clk 0:02:55]} 6. Bb5+ {[%clk 0:03:01]}  c6 {[%clk 0:02:56]} 7. dxc6 {[%clk 0:03:01]}  bxc6 {[%clk 0:02:57]} 8. Bd3 {[%clk 0:03:01]}  Nd5 {[%clk 0:02:56]} 9. Nf3 {[%clk 0:02:59]}  Bd6 {[%clk 0:02:56]} 10. O-O {[%clk 0:02:58]}  O-O {[%clk 0:02:56]} 11. Re1 {[%clk 0:02:58]}  Re8 {[%clk 0:02:56]} 12. Bf1 {[%clk 0:02:52]}  e4 {[%clk 0:02:49]} 13. Nd4 {[%clk 0:02:47]}  Qf6 {[%clk 0:02:29]} 14. Ne2 {[%clk 0:02:37]}  Bc5 {[%clk 0:01:21]} 15. Nbc3 {[%clk 0:01:16]}  Qxf2+ {[%clk 0:00:59]} 16. Kh1 {[%clk 0:01:15]}  Bg4 {[%clk 0:00:54]} 17. Nxd5 {[%clk 0:00:26]}  cxd5 {[%clk 0:00:54]} 18. b4 {[%clk 0:00:14]}  Bxb4 {[%clk 0:00:48]} 19. Bb2 {[%clk 0:00:15]}  Bd6 {[%clk 0:00:39]} 20. d3 {[%clk 0:00:13]}  Qh4 {[%clk 0:00:32]} 21. h3 {[%clk 0:00:10]}  Bxe2 {[%clk 0:00:27]} 22. Qxe2 {[%clk 0:00:10]}  Qg3 {[%clk 0:00:27]} 23. Kg1 {[%clk 0:00:09]}  e3 {[%clk 0:00:25]} 0-1


[Site "https://www.chess.com"]

[Event "Titled Tuesday Blitz November 01 Early 2022"]
[White "Maranhao,Jose Renato Ruiz"]
[Black "Araujo Sanchez, Josue"]
[WhiteFideId "2135175"]
[BlackFideId "6416896"]
[WhiteElo "1970"]
[BlackElo "2370"]
[Result "0-1"]
[Round "01"]
[TimeControl "180+1"]
[Date "2022.11.02"]
[WhiteClock "0:00:01"]
[BlackClock "0:01:01"]

1. g3 {[%clk 0:02:59]}  d5 {[%clk 0:02:59]} 2. Bg2 {[%clk 0:03:00]}  e5 {[%clk 0:02:58]} 3. b3 {[%clk 0:03:01]}  Nf6 {[%clk 0:02:57]} 4. Bb2 {[%clk 0:03:01]}  Bd6 {[%clk 0:02:56]} 5. d3 {[%clk 0:03:02]}  O-O {[%clk 0:02:55]} 6. Nd2 {[%clk 0:03:02]}  c5 {[%clk 0:02:54]} 7. e3 {[%clk 0:03:01]}  Nc6 {[%clk 0:02:54]} 8. Ne2 {[%clk 0:03:01]}  Re8 {[%clk 0:02:53]} 9. O-O {[%clk 0:03:01]}  Bf5 {[%clk 0:02:39]} 10. e4 {[%clk 0:02:58]}  Be6 {[%clk 0:02:36]} 11. exd5 {[%clk 0:02:52]}  Nxd5 {[%clk 0:02:36]} 12. Re1 {[%clk 0:02:51]}  f6 {[%clk 0:02:30]} 13. Ne4 {[%clk 0:02:47]}  Bf8 {[%clk 0:02:27]} 14. a3 {[%clk 0:02:39]}  Rc8 {[%clk 0:02:25]} 15. c4 {[%clk 0:02:39]}  Nc7 {[%clk 0:02:24]} 16. Qc2 {[%clk 0:02:16]}  Qd7 {[%clk 0:02:20]} 17. Rad1 {[%clk 0:02:14]}  b6 {[%clk 0:02:15]} 18. h4 {[%clk 0:02:00]}  Bg4 {[%clk 0:02:12]} 19. Rd2 {[%clk 0:01:39]}  Ne6 {[%clk 0:02:11]} 20. f3 {[%clk 0:01:36]}  Bh5 {[%clk 0:02:11]} 21. g4 {[%clk 0:01:08]}  Bf7 {[%clk 0:02:10]} 22. Bh3 {[%clk 0:01:08]}  Ned4 {[%clk 0:01:43]} 23. Nxd4 {[%clk 0:01:07]}  Nxd4 {[%clk 0:01:43]} 24. Bxd4 {[%clk 0:01:08]}  Qxd4+ {[%clk 0:01:42]} 25. Kh2 {[%clk 0:01:00]}  Be6 {[%clk 0:01:43]} 26. h5 {[%clk 0:00:47]}  h6 {[%clk 0:01:40]} 27. Ng3 {[%clk 0:00:37]}  Rcd8 {[%clk 0:01:35]} 28. Rg1 {[%clk 0:00:32]}  Qf4 {[%clk 0:01:34]} 29. Rf2 {[%clk 0:00:18]}  Rd7 {[%clk 0:01:28]} 30. Kh1 {[%clk 0:00:16]}  Red8 {[%clk 0:01:24]} 31. Bf1 {[%clk 0:00:13]}  Qe3 {[%clk 0:01:21]} 32. Nf5 {[%clk 0:00:06]}  Bxf5 {[%clk 0:01:17]} 33. gxf5 {[%clk 0:00:07]}  Rd4 {[%clk 0:01:17]} 34. Rg3 {[%clk 0:00:03]}  Rf4 {[%clk 0:01:13]} 35. Bg2 {[%clk 0:00:01]}  Qxd3 {[%clk 0:01:12]} 36. Qxd3 {[%clk 0:00:01]}  Rxd3 {[%clk 0:01:12]} 37. Kh2 {[%clk 0:00:01]}  Rxf5 {[%clk 0:01:12]} 38. Bh3 {[%clk 0:00:01]}  Rxh5 {[%clk 0:01:12]} 39. Kg2 {[%clk 0:00:01]}  Rg5 {[%clk 0:01:12]} 40. Be6+ {[%clk 0:00:01]}  Kh8 {[%clk 0:01:05]} 41. Rxg5 {[%clk 0:00:02]}  hxg5 {[%clk 0:01:06]} 42. Kg3 {[%clk 0:00:02]}  g6 {[%clk 0:01:06]} 43. Rh2+ {[%clk 0:00:02]}  Kg7 {[%clk 0:01:06]} 44. Kg4 {[%clk 0:00:02]}  Bd6 {[%clk 0:01:02]} 45. Rh1 {[%clk 0:00:01]}  e4 {[%clk 0:01:02]} 46. fxe4 {[%clk 0:00:01]}  Rg3# {[%clk 0:01:01]} 0-1


[Site "https://www.chess.com"]

[Event "Titled Tuesday Blitz November 01 Early 2022"]
[White "Martinez Molina, Carlos Alberto"]
[Black "Lazavik, Denis"]
[WhiteFideId "5122708"]
[BlackFideId "13515110"]
[WhiteElo "2212"]
[BlackElo "2437"]
[Result "0-1"]
[Round "01"]
[TimeControl "180+1"]
[Date "2022.11.01"]
[WhiteClock "0:00:50"]
[BlackClock "0:02:02"]

1. d4 {[%clk 0:02:58]}  f5 {[%clk 0:03:00]} 2. c4 {[%clk 0:02:58]}  Nf6 {[%clk 0:03:00]} 3. Nf3 {[%clk 0:02:58]}  g6 {[%clk 0:03:01]} 4. Nc3 {[%clk 0:02:59]}  Bg7 {[%clk 0:03:01]} 5. g3 {[%clk 0:02:59]}  O-O {[%clk 0:03:02]} 6. Bg2 {[%clk 0:02:59]}  d6 {[%clk 0:03:03]} 7. b3 {[%clk 0:03:00]}  c6 {[%clk 0:02:56]} 8. O-O {[%clk 0:02:59]}  Qc7 {[%clk 0:02:55]} 9. Bb2 {[%clk 0:02:59]}  e5 {[%clk 0:02:55]} 10. dxe5 {[%clk 0:02:59]}  dxe5 {[%clk 0:02:56]} 11. Qc2 {[%clk 0:02:56]}  e4 {[%clk 0:02:53]} 12. Nd4 {[%clk 0:02:55]}  Re8 {[%clk 0:02:51]} 13. Rad1 {[%clk 0:02:54]}  Nbd7 {[%clk 0:02:51]} 14. e3 {[%clk 0:02:46]}  Ne5 {[%clk 0:02:51]} 15. Ba3 {[%clk 0:02:40]}  Qf7 {[%clk 0:02:49]} 16. Bd6 {[%clk 0:02:37]}  Bd7 {[%clk 0:02:42]} 17. c5 {[%clk 0:02:29]}  Rad8 {[%clk 0:02:29]} 18. Bc7 {[%clk 0:02:18]}  Rc8 {[%clk 0:02:29]} 19. Bd6 {[%clk 0:02:18]}  Nd3 {[%clk 0:02:27]} 20. a3 {[%clk 0:02:09]}  Ng4 {[%clk 0:02:21]} 21. Rxd3 {[%clk 0:01:46]}  exd3 {[%clk 0:02:19]} 22. Qxd3 {[%clk 0:01:47]}  Be6 {[%clk 0:02:13]} 23. Nxe6 {[%clk 0:01:42]}  Qxe6 {[%clk 0:02:14]} 24. b4 {[%clk 0:01:40]}  Qb3 {[%clk 0:02:11]} 25. Rc1 {[%clk 0:01:35]}  Qxa3 {[%clk 0:02:09]} 26. Qc4+ {[%clk 0:01:30]}  Kh8 {[%clk 0:02:08]} 27. Ne2 {[%clk 0:01:23]}  Ne5 {[%clk 0:02:05]} 28. Qh4 {[%clk 0:00:55]}  Qb2 {[%clk 0:02:04]} 29. Re1 {[%clk 0:00:50]}  Nd3 {[%clk 0:02:02]} 0-1


[Site "https://www.chess.com"]

[Event "Titled Tuesday Blitz November 01 Early 2022"]
[White "Maximov, Dmitry"]
[Black "Manukian, Artak"]
[WhiteFideId "14105659"]
[BlackFideId "13301373"]
[WhiteElo "2494"]
[BlackElo "2462"]
[Result "1-0"]
[Round "01"]
[TimeControl "180+1"]
[Date "2022.11.02"]
[WhiteClock "0:00:19"]
[BlackClock "0:00:22"]

1. e4 {[%clk 0:03:00]}  c6 {[%clk 0:02:59]} 2. Nf3 {[%clk 0:02:59]}  d5 {[%clk 0:02:59]} 3. Nc3 {[%clk 0:03:00]}  dxe4 {[%clk 0:02:59]} 4. Nxe4 {[%clk 0:03:00]}  Nf6 {[%clk 0:03:00]} 5. Qe2 {[%clk 0:03:00]}  Nxe4 {[%clk 0:02:59]} 6. Qxe4 {[%clk 0:03:00]}  Nd7 {[%clk 0:03:00]} 7. Bc4 {[%clk 0:02:58]}  Nf6 {[%clk 0:03:00]} 8. Ne5 {[%clk 0:02:58]}  e6 {[%clk 0:03:01]} 9. Qe2 {[%clk 0:02:58]}  b5 {[%clk 0:02:57]} 10. Bd3 {[%clk 0:02:51]}  Qc7 {[%clk 0:02:50]} 11. Nxc6 {[%clk 0:02:44]}  a6 {[%clk 0:02:51]} 12. Nd4 {[%clk 0:02:41]}  Bb7 {[%clk 0:02:51]} 13. Nf3 {[%clk 0:02:39]}  Bd6 {[%clk 0:02:49]} 14. h3 {[%clk 0:02:38]}  e5 {[%clk 0:02:46]} 15. O-O {[%clk 0:02:24]}  O-O {[%clk 0:02:39]} 16. Ng5 {[%clk 0:02:09]}  h6 {[%clk 0:02:29]} 17. Ne4 {[%clk 0:02:08]}  Nd5 {[%clk 0:02:23]} 18. Nxd6 {[%clk 0:02:00]}  Qxd6 {[%clk 0:02:24]} 19. Be4 {[%clk 0:01:56]}  Nf4 {[%clk 0:02:22]} 20. Qf3 {[%clk 0:01:55]}  Bxe4 {[%clk 0:02:22]} 21. Qxe4 {[%clk 0:01:56]}  f5 {[%clk 0:02:22]} 22. Qe3 {[%clk 0:01:43]}  Nd5 {[%clk 0:01:58]} 23. Qg3 {[%clk 0:01:35]}  Rac8 {[%clk 0:01:43]} 24. c3 {[%clk 0:01:24]}  Nf4 {[%clk 0:01:41]} 25. Re1 {[%clk 0:01:21]}  g5 {[%clk 0:01:28]} 26. d4 {[%clk 0:01:19]}  exd4 {[%clk 0:01:25]} 27. Bxf4 {[%clk 0:01:18]}  Qxf4 {[%clk 0:01:25]} 28. Qxf4 {[%clk 0:01:18]}  gxf4 {[%clk 0:01:26]} 29. cxd4 {[%clk 0:01:18]}  Rc2 {[%clk 0:01:26]} 30. Rac1 {[%clk 0:01:14]}  Rfc8 {[%clk 0:01:26]} 31. Rxc2 {[%clk 0:01:05]}  Rxc2 {[%clk 0:01:27]} 32. Re6 {[%clk 0:01:05]}  Kg7 {[%clk 0:01:21]} 33. Rxa6 {[%clk 0:01:04]}  Rxb2 {[%clk 0:01:22]} 34. d5 {[%clk 0:01:01]}  Rd2 {[%clk 0:01:21]} 35. d6 {[%clk 0:01:00]}  Kf6 {[%clk 0:01:16]} 36. d7+ {[%clk 0:00:54]}  Ke7 {[%clk 0:01:11]} 37. Rxh6 {[%clk 0:00:54]}  Rxa2 {[%clk 0:01:02]} 38. Rd6 {[%clk 0:00:50]}  Kd8 {[%clk 0:01:01]} 39. Rd4 {[%clk 0:00:46]}  f3 {[%clk 0:00:56]} 40. gxf3 {[%clk 0:00:43]}  Rc2 {[%clk 0:00:56]} 41. h4 {[%clk 0:00:40]}  Rc4 {[%clk 0:00:55]} 42. Rd5 {[%clk 0:00:35]}  b4 {[%clk 0:00:53]} 43. h5 {[%clk 0:00:33]}  b3 {[%clk 0:00:49]} 44. Rb5 {[%clk 0:00:31]}  Kxd7 {[%clk 0:00:48]} 45. Rxb3 {[%clk 0:00:21]}  Rh4 {[%clk 0:00:48]} 46. Kg2 {[%clk 0:00:20]}  Rxh5 {[%clk 0:00:31]} 47. Rb6 {[%clk 0:00:21]}  f4 {[%clk 0:00:29]} 48. Rf6 {[%clk 0:00:20]}  Rh4 {[%clk 0:00:29]} 49. Kf1 {[%clk 0:00:20]}  Ke7 {[%clk 0:00:28]} 50. Ra6 {[%clk 0:00:20]}  Rh6 {[%clk 0:00:22]} 51. Rxh6 {[%clk 0:00:19]} 1-0


[Site "https://www.chess.com"]

[Event "Titled Tuesday Blitz November 01 Early 2022"]
[White "Melikhov, Evgeny V."]
[Black "Papasimakopoulos, Alexandros"]
[WhiteFideId "4122046"]
[BlackFideId "4244125"]
[WhiteElo "2169"]
[BlackElo "2357"]
[Result "0-1"]
[Round "01"]
[TimeControl "180+1"]
[Date "2022.11.02"]
[WhiteClock "0:00:02"]
[BlackClock "0:01:06"]

1. d4 {[%clk 0:02:59]}  e6 {[%clk 0:02:47]} 2. c4 {[%clk 0:02:59]}  Nf6 {[%clk 0:02:43]} 3. Nc3 {[%clk 0:02:55]}  Bb4 {[%clk 0:02:40]} 4. Qc2 {[%clk 0:02:55]}  c5 {[%clk 0:02:38]} 5. dxc5 {[%clk 0:02:55]}  Bxc5 {[%clk 0:02:38]} 6. Nf3 {[%clk 0:02:54]}  Qb6 {[%clk 0:02:39]} 7. e3 {[%clk 0:02:54]}  Be7 {[%clk 0:02:38]} 8. b3 {[%clk 0:02:51]}  d6 {[%clk 0:02:38]} 9. Bb2 {[%clk 0:02:51]}  Nbd7 {[%clk 0:02:27]} 10. Be2 {[%clk 0:02:48]}  a6 {[%clk 0:02:24]} 11. g4 {[%clk 0:02:31]}  h6 {[%clk 0:02:19]} 12. Rg1 {[%clk 0:02:30]}  Qc7 {[%clk 0:02:15]} 13. h4 {[%clk 0:02:29]}  Nc5 {[%clk 0:02:03]} 14. g5 {[%clk 0:02:26]}  hxg5 {[%clk 0:02:03]} 15. hxg5 {[%clk 0:02:27]}  Nh5 {[%clk 0:02:03]} 16. g6 {[%clk 0:02:27]}  f5 {[%clk 0:02:03]} 17. Ng5 {[%clk 0:01:52]}  Bxg5 {[%clk 0:01:58]} 18. Rxg5 {[%clk 0:01:51]}  Nf6 {[%clk 0:01:59]} 19. O-O-O {[%clk 0:01:49]}  Bd7 {[%clk 0:01:59]} 20. f3 {[%clk 0:01:07]}  Bc6 {[%clk 0:01:47]} 21. b4 {[%clk 0:01:02]}  Ncd7 {[%clk 0:01:47]} 22. Qd2 {[%clk 0:00:25]}  Ke7 {[%clk 0:01:29]} 23. Kb1 {[%clk 0:00:14]}  Rh2 {[%clk 0:01:26]} 24. Rdg1 {[%clk 0:00:11]}  Ne5 {[%clk 0:01:25]} 25. R5g2 {[%clk 0:00:10]}  Rah8 {[%clk 0:01:18]} 26. Qe1 {[%clk 0:00:04]}  Bxf3 {[%clk 0:01:15]} 27. Rxh2 {[%clk 0:00:03]}  Rxh2 {[%clk 0:01:15]} 28. Rf1 {[%clk 0:00:03]}  Bxe2 {[%clk 0:01:13]} 29. Nxe2 {[%clk 0:00:03]}  Qxc4 {[%clk 0:01:14]} 30. Nd4 {[%clk 0:00:02]}  Rxb2+ {[%clk 0:01:06]} 31. Kxb2 {[%clk 0:00:02]}  Nd3+ {[%clk 0:01:06]} 0-1


[Site "https://www.chess.com"]

[Event "Titled Tuesday Blitz November 01 Early 2022"]
[White "Migot, Tangi"]
[Black "Warchol, Kamil"]
[WhiteFideId "662445"]
[BlackFideId "21858241"]
[WhiteElo "2603"]
[BlackElo "2001"]
[Result "1-0"]
[Round "01"]
[TimeControl "180+1"]
[Date "2022.11.02"]
[WhiteClock "0:01:00"]
[BlackClock "0:00:36"]

1. e4 {[%clk 0:03:00]}  c5 {[%clk 0:02:57]} 2. Nf3 {[%clk 0:03:00]}  d6 {[%clk 0:02:53]} 3. d4 {[%clk 0:03:01]}  cxd4 {[%clk 0:02:49]} 4. Nxd4 {[%clk 0:03:02]}  Nf6 {[%clk 0:02:49]} 5. Nc3 {[%clk 0:03:03]}  Nc6 {[%clk 0:02:48]} 6. f3 {[%clk 0:03:01]}  e5 {[%clk 0:02:45]} 7. Nb3 {[%clk 0:03:01]}  Be7 {[%clk 0:02:43]} 8. Be3 {[%clk 0:02:56]}  Be6 {[%clk 0:02:38]} 9. Qe2 {[%clk 0:02:53]}  O-O {[%clk 0:02:33]} 10. O-O-O {[%clk 0:02:53]}  a5 {[%clk 0:02:28]} 11. Kb1 {[%clk 0:02:46]}  a4 {[%clk 0:02:22]} 12. Nc5 {[%clk 0:02:41]}  dxc5 {[%clk 0:02:04]} 13. Rxd8 {[%clk 0:02:39]}  Rfxd8 {[%clk 0:02:05]} 14. Qf2 {[%clk 0:02:30]}  Nd4 {[%clk 0:02:01]} 15. Be2 {[%clk 0:02:18]}  b6 {[%clk 0:01:29]} 16. g4 {[%clk 0:02:17]}  Nd7 {[%clk 0:01:24]} 17. Nd5 {[%clk 0:02:08]}  Bf8 {[%clk 0:01:19]} 18. Nc7 {[%clk 0:01:59]}  Ra7 {[%clk 0:01:09]} 19. Nxe6 {[%clk 0:01:56]}  Nxe6 {[%clk 0:01:08]} 20. Bc4 {[%clk 0:01:53]}  Nc7 {[%clk 0:01:03]} 21. Rd1 {[%clk 0:01:43]}  Raa8 {[%clk 0:00:56]} 22. Bg5 {[%clk 0:01:35]}  Nf6 {[%clk 0:00:48]} 23. Rd2 {[%clk 0:01:16]}  Be7 {[%clk 0:00:44]} 24. Bxf6 {[%clk 0:01:13]}  Bxf6 {[%clk 0:00:43]} 25. Bd5 {[%clk 0:01:14]}  Nxd5 {[%clk 0:00:42]} 26. Rxd5 {[%clk 0:01:14]}  Rxd5 {[%clk 0:00:42]} 27. exd5 {[%clk 0:01:14]}  Rd8 {[%clk 0:00:39]} 28. c4 {[%clk 0:01:12]}  Bg5 {[%clk 0:00:39]} 29. Qc2 {[%clk 0:01:01]}  Bf4 {[%clk 0:00:36]} 30. Qxa4 {[%clk 0:01:00]} 1-0


[Site "https://www.chess.com"]

[Event "Titled Tuesday Blitz November 01 Early 2022"]
[White "Obrien, Matthew"]
[Black "Ardila, Oscar Humberto"]
[WhiteFideId "2059150"]
[BlackFideId "4404742"]
[WhiteElo "2621"]
[BlackElo "1898"]
[Result "1-0"]
[Round "01"]
[TimeControl "180+1"]
[Date "2022.11.02"]
[WhiteClock "0:00:06"]
[BlackClock "0:00:21"]

1. e4 {[%clk 0:02:59]}  e5 {[%clk 0:02:59]} 2. Nf3 {[%clk 0:02:58]}  Nf6 {[%clk 0:02:59]} 3. Nxe5 {[%clk 0:02:57]}  d6 {[%clk 0:02:59]} 4. Nf3 {[%clk 0:02:57]}  Nxe4 {[%clk 0:03:00]} 5. Bd3 {[%clk 0:02:58]}  Nf6 {[%clk 0:02:59]} 6. O-O {[%clk 0:02:56]}  Be7 {[%clk 0:03:00]} 7. Re1 {[%clk 0:02:56]}  Bg4 {[%clk 0:02:59]} 8. h3 {[%clk 0:02:52]}  Bh5 {[%clk 0:02:59]} 9. Qe2 {[%clk 0:02:52]}  Nc6 {[%clk 0:02:58]} 10. c3 {[%clk 0:02:32]}  O-O {[%clk 0:02:56]} 11. Bc2 {[%clk 0:02:23]}  Ne5 {[%clk 0:02:52]} 12. g4 {[%clk 0:02:09]}  Bg6 {[%clk 0:02:14]} 13. Bxg6 {[%clk 0:01:55]}  Nxf3+ {[%clk 0:02:13]} 14. Qxf3 {[%clk 0:01:52]}  hxg6 {[%clk 0:02:13]} 15. Qxb7 {[%clk 0:01:41]}  Qd7 {[%clk 0:02:07]} 16. d4 {[%clk 0:01:33]}  Nxg4 {[%clk 0:01:59]} 17. hxg4 {[%clk 0:01:30]}  Qxg4+ {[%clk 0:01:59]} 18. Qg2 {[%clk 0:01:30]}  Qd7 {[%clk 0:01:59]} 19. Nd2 {[%clk 0:01:27]}  d5 {[%clk 0:01:55]} 20. Nf3 {[%clk 0:01:25]}  Bf6 {[%clk 0:01:52]} 21. Bf4 {[%clk 0:01:23]}  c6 {[%clk 0:01:52]} 22. Ne5 {[%clk 0:01:20]}  Qb7 {[%clk 0:01:50]} 23. Re2 {[%clk 0:01:14]}  Rfe8 {[%clk 0:01:49]} 24. Rae1 {[%clk 0:01:13]}  Re6 {[%clk 0:01:50]} 25. Ng4 {[%clk 0:01:08]}  Rxe2 {[%clk 0:01:49]} 26. Rxe2 {[%clk 0:01:08]}  Qd7 {[%clk 0:01:40]} 27. Be5 {[%clk 0:01:00]}  Be7 {[%clk 0:01:34]} 28. Qh3 {[%clk 0:00:57]}  Qf5 {[%clk 0:01:26]} 29. Bxg7 {[%clk 0:00:41]}  Kxg7 {[%clk 0:01:24]} 30. Rxe7 {[%clk 0:00:37]}  Rb8 {[%clk 0:01:11]} 31. Qh6+ {[%clk 0:00:12]}  Kg8 {[%clk 0:01:11]} 32. Ne5 {[%clk 0:00:07]}  Rf8 {[%clk 0:00:50]} 33. Qh4 {[%clk 0:00:06]}  Qb1+ {[%clk 0:00:49]} 34. Kg2 {[%clk 0:00:05]}  Kg7 {[%clk 0:00:46]} 35. Qg3 {[%clk 0:00:04]}  Qf5 {[%clk 0:00:38]} 36. Rc7 {[%clk 0:00:04]}  c5 {[%clk 0:00:37]} 37. dxc5 {[%clk 0:00:03]}  a5 {[%clk 0:00:33]} 38. Nf3 {[%clk 0:00:04]}  Qe4 {[%clk 0:00:26]} 39. Qe5+ {[%clk 0:00:04]}  Qxe5 {[%clk 0:00:26]} 40. Nxe5 {[%clk 0:00:04]}  Kf6 {[%clk 0:00:26]} 41. Nf3 {[%clk 0:00:04]}  Kf5 {[%clk 0:00:25]} 42. Nd4+ {[%clk 0:00:05]}  Ke4 {[%clk 0:00:26]} 43. c6 {[%clk 0:00:06]}  Ke5 {[%clk 0:00:25]} 44. Re7+ {[%clk 0:00:06]}  Kd6 {[%clk 0:00:25]} 45. Rd7+ {[%clk 0:00:06]}  Ke5 {[%clk 0:00:21]} 46. c7 {[%clk 0:00:06]} 1-0


[Site "https://www.chess.com"]